bitfinex-derivatives/quotes_ETHF0:USTF0_20240907
["timestamp","ask_amount","ask_price","bid_price","bid_amount"]
[1725737416672,0.3793,2287.9,2287.8,0.82232]
[1725737416973,0.3793,2287.9,2287.8,1.18172]
[1725737417674,0.8164,2287.9,2287.8,1.18172]
[1725737418873,0.8164,2287.9,2287.8,0.3852]
[1725737419074,3.10861554,2287.9,2287.8,0.3852]
[1725737419673,3.10861554,2287.9,2287.7,3.64492]
[1725737419976,3.10862554,2287.9,2287.7,3.64492]
[1725737420169,0.3921,2287.8,2287.7,3.64492]
[1725737420371,2.68431554,2287.8,2287.7,3.64492]
[1725737421276,3.12143554,2287.8,2287.7,3.2078]
[1725737421882,3.12143554,2287.8,2287.7,3.64494]
[1725737422981,3.12143554,2287.8,2287.7,3.2078]
[1725737423178,2.29221554,2287.8,2287.7,4.90494]
[1725737423380,2.29221554,2288.2,2287.9,1.09275]
[1725737423571,2.29221554,2288.2,2288.1,0.43706]
[1725737423773,2.29221554,2288.3,2288.2,0.43704]
[1725737423974,2.29221554,2288.3,2288.2,0.81944]
[1725737424287,4.41586542,2288.4,2288.2,0.81944]
[1725737424481,4.41586542,2288.4,2288.2,1.03496591]
[1725737425177,3.97885542,2288.4,2288.3,0.43702]
[1725737426884,3.60105542,2288.4,2288.3,0.43702]
[1725737431485,3.02395166,2288.4,2288.3,0.43702]
[1725737439388,0.7349,2288.4,2288.3,0.43702]
[1725737440787,0.7349,2288.4,2288.2,0.43703]
[1725737441085,5.87598869,2288.4,2288.1,3.2078]
[1725737441393,5.87598869,2288.4,2288.2,0.43704]
[1725737441888,5.6304,2288.3,2287.7,3.2078]
[1725737442088,2.86213639,2287.8,2287.7,3.2078]
[1725737442281,3.29925639,2287.8,2287.7,3.2078]
[1725737442591,8.42635639,2287.8,2287.7,3.2078]
[1725737442893,5.56422,2287.8,2287.7,3.2078]
[1725737443795,1.19302,2287.8,2287.7,3.2078]
[1725737443997,0.3915,2287.8,2287.7,3.64494]
[1725737444193,3.25332712,2287.8,2287.7,3.64494]
[1725737445784,2.86182712,2287.8,2287.7,14.39024]
[1725737445985,2.28902819,2288.1,2288.0,0.43708]
[1725737446194,2.28902819,2288.2,2288.1,0.43706]
[1725737446387,0.3618,2288.5,2288.4,0.437]
[1725737446891,0.3618,2288.5,2288.3,0.43701]
[1725737447094,2.28873292,2288.4,2288.3,0.43701]
[1725737447285,2.65053292,2288.5,2288.3,0.43701]
[1725737448187,3.08752292,2288.5,2288.3,0.43701]
[1725737448395,0.7484,2288.4,2288.2,0.43704]
[1725737448692,2.28885356,2288.3,2288.2,0.43704]
[1725737449287,0.3756,2288.4,2288.3,0.43702]
[1725737449288,2.66445356,2288.4,2288.3,0.43702]
[1725737449487,2.66433569,2288.4,2288.3,0.43702]
[1725737450091,2.66433569,2288.4,2288.2,0.43703]
[1725737450395,2.28882828,2288.3,2288.2,0.43703]
[1725737450595,2.66442828,2288.4,2288.2,0.43703]
[1725737451988,2.28882828,2288.3,2288.2,0.43703]
[1725737454391,0.3756,2288.4,2288.3,0.43702]
[1725737456486,0.3756,2288.4,2288.2,0.43703]
[1725737456690,2.28896781,2288.3,2288.2,0.43703]
[1725737458696,0.43706,2288.1,2287.9,0.43709]
[1725737458898,0.7495,2288.0,2287.9,0.43709]
[1725737459200,0.7495,2288.0,2287.9,0.65904015]
[1725737460898,2.28929684,2288.1,2288.0,0.43708]
[1725737461103,2.28929684,2288.2,2288.1,0.43706]
[1725737461294,2.28929684,2288.3,2288.2,0.43704]
[1725737461493,0.7343,2288.4,2288.2,0.43704]
[1725737461896,1.17131,2288.4,2288.2,0.43704]
[1725737462295,0.7343,2288.4,2288.2,0.43704]
[1725737463000,0.7343,2288.4,2288.3,0.43702]
[1725737463503,0.43697,2288.6,2288.3,0.43701]
[1725737463701,1.18071,2288.4,2288.2,0.43704]
[1725737463900,0.7437,2288.4,2288.2,0.43704]
[1725737465304,0.7437,2288.4,2288.3,0.43702]
[1725737465900,8.41254941,2288.4,2288.0,3.9456]
[1725737466100,0.43709,2288.0,2287.7,0.43712]
[1725737466310,3.97297688,2287.9,2287.7,0.43712]
[1725737466504,2.86277688,2287.8,2287.7,0.43712]
[1725737466903,2.86277688,2287.8,2287.6,3.64495]
[1725737467109,3.29989688,2287.8,2287.6,3.64495]
[1725737467304,2.29038774,2287.7,2287.6,3.64495]
[1725737467503,2.86277688,2287.8,2287.6,3.64495]
[1725737468305,2.29034867,2287.7,2287.6,3.64495]
[1725737468506,2.86277688,2287.8,2287.6,3.64495]
[1725737469016,2.86277688,2287.8,2287.7,0.43714]
[1725737469315,2.86277688,2287.8,2287.7,1.69714]
[1725737469613,1.1102,2287.9,2287.7,1.69714]
[1725737469614,3.40052794,2287.9,2287.7,1.69714]
[1725737469905,2.29032794,2287.8,2287.7,1.26]
[1725737470500,2.72744794,2287.8,2287.7,1.26]
[1725737471103,2.29032794,2287.8,2287.7,1.69714]
[1725737471410,3.02612794,2287.9,2287.7,2.08794]
[1725737471706,2.29032794,2288.0,2287.8,1.69712]
[1725737471910,2.29032794,2288.0,2287.8,2.07832]
[1725737474609,2.29032794,2288.0,2287.9,0.4371]
[1725737474805,2.29032794,2288.1,2288.0,0.43708]
[1725737475106,3.99637688,2288.2,2288.1,0.43706]
[1725737475107,2.28938594,2288.2,2288.1,0.43706]
[1725737476225,3.63397688,2288.4,2288.1,0.43706]
[1725737476226,2.28938594,2288.3,2288.2,0.43704]
[1725737476407,2.28938594,2288.3,2288.2,0.79644]
[1725737476915,2.28938594,2288.4,2288.2,8.37464]
[1725737477220,2.28938594,2288.3,2288.2,4.00424]
[1725737477523,2.28938594,2288.4,2288.2,4.00424]
[1725737478012,2.28938594,2288.3,2288.2,3.5672]
[1725737478213,3.29979688,2288.4,2288.1,0.43705]
[1725737478409,2.28936605,2288.2,2288.1,0.43705]
[1725737479112,2.28936605,2288.3,2288.1,0.43705]
[1725737479910,2.28936605,2288.3,2288.2,0.43704]
[1725737483617,4.61426367,2288.5,2288.2,0.43704]
[1725737484203,4.61426367,2288.5,2288.3,0.43702]
[1725737484601,4.61426367,2288.5,2288.1,0.3715]
[1725737484819,4.61426367,2288.5,2288.2,0.43703]
[1725737485020,4.61426367,2288.5,2288.3,0.43702]
[1725737488018,4.25386367,2288.5,2288.3,0.43702]
[1725737488211,4.61676367,2288.5,2288.3,0.43702]
[1725737489018,0.7452,2288.5,2288.1,1.6315]
[1725737489226,4.61675367,2288.5,2288.3,0.43702]
[1725737489729,4.61675367,2288.5,2288.2,0.81473]
[1725737489926,0.437,2288.4,2288.2,0.43703]
[1725737490128,3.79906367,2288.4,2288.2,0.43703]
[1725737491027,0.3645,2288.4,2288.2,0.43703]
[1725737491523,0.80151,2288.4,2288.2,0.43703]
[1725737491725,2.29051028,2288.3,2288.2,0.43703]
[1725737492020,2.29050755,2288.3,2288.2,0.43703]
[1725737492841,2.29050755,2288.3,2288.2,0.82373]
[1725737493438,2.8632084,2288.4,2288.2,0.43703]
[1725737493826,2.8632084,2288.4,2288.3,0.43702]
[1725737494228,4.0454084,2288.5,2288.2,0.43703]
[1725737494430,2.29049766,2288.3,2288.2,0.43703]
[1725737495536,2.8632084,2288.4,2288.2,0.43703]
[1725737495745,2.2904972,2288.3,2288.2,0.43703]
[1725737495935,0.368,2288.3,2288.2,0.43703]
[1725737496438,2.65848278,2288.3,2288.2,0.43703]
[1725737497038,2.65849241,2288.3,2288.2,0.43703]
[1725737498134,2.29049241,2288.3,2288.2,0.43703]
[1725737498636,4.17976367,2288.5,2288.4,0.437]
[1725737499434,0.7452,2288.5,2288.4,0.437]
[1725737499640,4.17976367,2288.5,2288.4,0.437]
[1725737500033,0.7452,2288.5,2288.4,0.437]
[1725737501237,0.43701,2288.4,2288.2,0.43704]
[1725737501438,0.43701,2288.4,2288.2,0.43703]
[1725737501640,4.61675367,2288.5,2288.1,1.26]
[1725737501942,2.86286483,2288.3,2288.2,0.43704]
[1725737502150,2.86286483,2288.3,2288.2,0.79634]
[1725737503142,2.86286483,2288.3,2288.2,1.15614]
[1725737506038,2.86286483,2288.3,2288.2,0.43704]
[1725737506750,2.29026508,2288.3,2288.2,0.43704]
[1725737512556,0.43703,2288.3,2288.1,0.43705]
[1725737512758,3.00542641,2288.2,2288.1,0.43705]
[1725737513844,3.57854085,2288.2,2288.1,0.43705]
[1725737514354,0.7151,2288.2,2288.1,0.43705]
[1725737515550,1.1103,2288.2,2288.1,0.43705]
[1725737518052,0.43711,2287.9,2287.7,3.2078]
[1725737518258,1.1356,2287.8,2287.7,3.64494]
[1725737518646,1.1356,2287.8,2287.7,4.90494]
[1725737518859,3.60982155,2287.8,2287.7,4.90494]
[1725737520659,0.7434,2287.8,2287.7,4.90494]
[1725737521159,2.86679952,2287.8,2287.7,8.839]
[1725737521354,2.29305656,2287.8,2287.7,14.839]
[1725737521549,2.29305656,2287.9,2287.7,15.196]
[1725737521749,0.3621,2288.2,2287.9,0.4371]
[1725737521750,2.29305656,2288.1,2287.9,0.4371]
[1725737521955,2.29305656,2288.1,2288.0,0.43708]
[1725737522255,2.29305656,2288.1,2288.0,4.00188]
[1725737522454,2.29305656,2288.1,2288.0,5.26188]
[1725737522768,2.29305656,2288.2,2288.1,0.43706]
[1725737523156,2.29305656,2288.2,2288.1,4.80746]
[1725737523865,2.29305656,2288.2,2288.1,0.43706]
[1725737525168,2.29305656,2288.2,2288.1,1.69706]
[1725737525862,2.29305656,2288.2,2288.1,2.06206]
[1725737528875,2.86679952,2288.2,2288.1,2.06206]
[1725737529171,4.18876285,2288.4,2288.1,1.625]
[1725737529372,4.18876285,2288.4,2288.2,0.81123]
[1725737533371,4.62577285,2288.4,2288.2,0.81123]
[1725737535573,4.62577285,2288.4,2288.1,1.26]
[1725737536175,4.62577285,2288.4,2288.2,0.43704]
[1725737536566,3.43976285,2288.3,2288.2,0.43704]
[1725737536774,4.62577285,2288.4,2288.2,0.43704]
[1725737536973,2.8660231,2288.3,2288.2,0.43704]
[1725737538377,1.18601,2288.4,2288.2,0.43704]
[1725737539787,0.43702,2288.3,2288.1,0.43705]
[1725737539970,2.86611419,2288.2,2288.1,0.43705]
[1725737540870,2.86611419,2288.3,2288.2,0.43704]
[1725737541075,2.86600513,2288.3,2288.2,0.43704]
[1725737541292,1.18602,2288.4,2288.2,0.43704]
[1725737541577,2.86606367,2288.3,2288.2,0.43704]
[1725737542181,0.749,2288.4,2288.3,0.43702]
[1725737542182,3.61506367,2288.4,2288.3,0.43702]
[1725737542473,3.61506367,2288.4,2288.3,3.64482]
[1725737545979,3.61506367,2288.4,2288.3,0.43702]
[1725737546577,3.61466382,2288.4,2288.3,0.43702]
[1725737547487,3.61466826,2288.4,2288.3,0.43702]
[1725737548183,0.749,2288.4,2288.3,0.43702]
[1725737548382,3.61469719,2288.4,2288.3,0.43702]
[1725737548579,0.749,2288.4,2288.3,0.43702]
[1725737549583,3.61464214,2288.4,2288.3,0.43702]
[1725737552181,0.749,2288.4,2288.3,0.43702]
[1725737553391,4.18876285,2288.4,2288.3,0.43702]
[1725737553782,0.749,2288.4,2288.3,0.43702]
[1725737553982,4.18876285,2288.4,2288.3,0.43702]
[1725737554281,0.749,2288.4,2288.3,0.43702]
[1725737554686,0.749,2288.4,2288.3,3.64482]
[1725737554889,0.3621,2288.4,2288.3,3.64482]
[1725737558590,3.43976285,2288.5,2288.4,0.437]
[1725737558787,3.81406285,2288.6,2288.5,0.43698]
[1725737558980,3.2391495,2288.6,2288.5,0.43698]
[1725737562685,0.3743,2288.6,2288.5,0.43698]
[1725737562886,3.2391495,2288.6,2288.5,0.43698]
[1725737567890,5.18088,2288.6,2288.4,0.437]
[1725737568197,2.86524577,2288.5,2288.4,0.437]
[1725737569095,2.86541736,2288.5,2288.4,0.437]
[1725737571693,0.43704,2288.2,2288.1,3.2078]
[1725737571893,3.30282419,2288.2,2288.1,3.2078]
[1725737572095,4.80744,2288.2,2288.1,3.2078]
[1725737572392,5.20284,2288.2,2288.1,3.2078]
[1725737572594,0.43709,2288.0,2287.7,1.14250788]
[1725737572901,2.2925519,2287.8,2287.6,1.26]
[1725737573086,2.2925519,2287.8,2287.5,4.35030788]
[1725737573087,2.6879519,2287.7,2287.5,4.35030788]
[1725737573294,2.2925519,2287.6,2287.5,3.2078]
[1725737573494,3.25538987,2287.6,2287.5,3.2078]
[1725737573686,3.25538987,2287.6,2287.1,1.69724]
[1725737573687,0.43719,2287.5,2287.1,1.69724]
[1725737573888,2.29129549,2287.3,2287.1,1.69724]
[1725737574084,3.30130937,2287.5,2287.1,1.69724]
[1725737574085,2.86411937,2287.2,2287.1,1.69724]
[1725737574291,2.67904217,2287.2,2287.1,1.69724]
[1725737574486,2.67904217,2287.2,2287.0,4.41236]
[1725737574691,2.67904217,2287.2,2286.9,1.69728]
[1725737574692,2.28934217,2287.1,2286.9,1.69728]
[1725737574887,2.68034217,2287.1,2286.7,3.43002854]
[1725737575093,2.28934217,2286.8,2286.6,0.3933]
[1725737575395,2.28934217,2286.7,2286.6,0.3933]
[1725737575588,2.28934217,2286.7,2286.6,2.09064]
[1725737576491,2.28934217,2286.7,2286.3,3.2078]
[1725737576688,3.24541937,2286.8,2286.3,3.2078]
[1725737576689,2.28934217,2286.4,2286.3,3.6452]
[1725737577090,2.86411937,2286.5,2286.3,3.6452]
[1725737577091,2.67104217,2286.6,2286.4,0.43738]
[1725737577292,2.67104217,2286.6,2286.4,1.69738]
[1725737577497,0.3817,2286.6,2286.4,1.69738]
[1725737577900,2.67104217,2286.6,2286.4,1.69738]
[1725737578103,2.67104217,2286.6,2286.4,1.26]
[1725737578297,0.3817,2286.6,2286.4,1.69738]
[1725737578499,0.3817,2286.6,2286.4,1.26]
[1725737578703,0.3817,2286.6,2286.4,1.69738]
[1725737583703,0.3817,2286.6,2286.3,3.2078]
[1725737583906,0.43742,2286.3,2285.9,3.64527]
[1725737584216,1.69743,2286.2,2285.9,3.2078]
[1725737584515,0.80665,2286.1,2285.9,3.2078]
[1725737584701,0.80665,2286.1,2285.7,1.69751]
[1725737584908,1.17725,2286.1,2285.8,0.43749]
[1725737585505,0.43746,2286.0,2285.7,1.69751]
[1725737585904,0.43746,2286.0,2285.7,0.43751]
[1725737586207,0.43746,2286.0,2285.5,6.2378]
[1725737586208,0.43746,2286.0,2285.6,0.43753]
[1725737586416,0.43746,2286.0,2285.5,6.2378]
[1725737586621,0.43746,2286.0,2285.7,0.43751]
[1725737586823,0.43749,2285.9,2285.6,0.43753]
[1725737587024,0.43749,2285.9,2285.5,6.2378]
[1725737587425,0.43749,2285.9,2285.6,0.43753]
[1725737588028,0.43747,2286.0,2285.7,0.43751]
[1725737588521,1.17726,2286.1,2285.5,6.2378]
[1725737588825,1.17726,2286.1,2285.8,0.43749]
[1725737590417,0.3692,2286.1,2285.8,3.2078]
[1725737590617,0.3692,2286.1,2286.0,0.43746]
[1725737591921,0.3692,2286.1,2285.9,0.81697]
[1725737592325,0.3692,2286.1,2286.0,0.43746]
[1725737593124,0.3692,2286.1,2285.9,0.81697]
[1725737593922,0.3692,2286.1,2285.9,0.43747]
[1725737594938,0.3692,2286.1,2285.7,0.43751]
[1725737594939,0.43747,2286.0,2285.7,0.43751]
[1725737595731,0.43749,2285.9,2285.7,0.43751]
[1725737595936,0.3692,2286.1,2285.5,0.7874]
[1725737595937,3.3992,2286.1,2285.5,0.7874]
[1725737596137,0.43753,2285.7,2285.4,3.64537]
[1725737596347,0.43755,2285.6,2285.3,0.43759]
[1725737596529,0.81045,2285.6,2285.3,0.43759]
[1725737597228,0.3729,2285.6,2285.4,0.43758]
[1725737597431,0.81044,2285.6,2285.4,0.43758]
[1725737597736,0.3729,2285.6,2285.4,0.43758]
[1725737598326,0.81044,2285.6,2285.4,0.43758]
[1725737598531,0.81044,2285.6,2285.3,0.43758]
[1725737598829,0.81044,2285.6,2285.4,0.43758]
[1725737599639,0.81044,2285.6,2285.2,0.3695]
[1725737599640,0.3729,2285.6,2285.2,0.3695]
[1725737599828,0.3729,2285.6,2285.5,0.43756]
[1725737600027,0.43753,2285.7,2285.5,0.43756]
[1725737600237,1.19721,2285.8,2285.5,0.43755]
[1725737600440,0.3895,2285.8,2285.7,0.43752]
[1725737600635,0.3765,2286.1,2285.6,3.2078]
[1725737600835,0.3765,2286.1,2285.9,0.43746]
[1725737601440,0.3765,2286.1,2286.0,0.43746]
[1725737601632,0.43743,2286.2,2286.0,0.43746]
[1725737601832,3.4126,2286.3,2286.0,0.43745]
[1725737602131,0.43743,2286.2,2285.9,0.43747]
[1725737602530,0.43743,2286.2,2285.7,0.7642]
[1725737602531,0.43743,2286.2,2286.0,0.43745]
[1725737602932,0.43745,2286.1,2285.9,0.43747]
[1725737603238,0.43744,2286.2,2285.9,0.43747]
[1725737603536,0.43747,2286.0,2285.8,0.43749]
[1725737603733,3.4126,2286.3,2285.8,0.43749]
[1725737603934,3.4126,2286.3,2285.9,0.43748]
[1725737603935,0.43746,2286.1,2285.9,0.43748]
[1725737605237,0.43747,2286.0,2285.8,0.43749]
[1725737605634,0.43745,2286.1,2285.9,0.43748]
[1725737606149,3.85002,2286.3,2286.0,0.43746]
[1725737606447,3.85002,2286.3,2286.1,0.43744]
[1725737606642,0.82002,2286.3,2285.7,0.7642]
[1725737607144,0.43743,2286.2,2286.0,0.43745]
[1725737607447,0.3826,2286.3,2285.9,0.43747]
[1725737607633,0.43745,2286.1,2285.9,0.43747]
[1725737608551,0.3826,2286.3,2285.9,0.43747]
[1725737608849,0.43744,2286.1,2285.9,0.43747]
[1725737610049,0.43744,2286.2,2286.0,0.43746]
[1725737610641,0.43744,2286.1,2285.9,0.43747]
[1725737612635,0.43744,2286.2,2286.0,0.43746]
[1725737613142,0.82001,2286.3,2286.1,0.43744]
[1725737613345,5.19441,2286.3,2286.1,0.43744]
[1725737613546,0.82001,2286.3,2286.1,0.43744]
[1725737614648,0.82001,2286.3,2286.0,0.81675]
[1725737614649,0.43742,2286.2,2286.0,0.81675]
[1725737614841,0.3826,2286.3,2286.1,0.43744]
[1725737614842,0.82001,2286.3,2286.1,0.43744]
[1725737615041,5.19441,2286.3,2286.1,0.80014]
[1725737615241,0.82,2286.3,2286.1,0.80013]
[1725737616445,0.3826,2286.3,2286.2,0.43742]
[1725737617746,3.5843,2286.4,2286.1,0.3627]
[1725737617747,3.2078,2286.4,2286.3,0.4374]
[1725737617946,0.43736,2286.6,2286.4,0.43738]
[1725737618151,0.43737,2286.5,2286.3,0.43739]
[1725737620142,2.72671217,2286.5,2286.3,0.43739]
[1725737620540,0.43739,2286.4,2286.2,0.82671]
[1725737620745,2.72673217,2286.4,2286.2,0.82671]
[1725737623355,3.54934217,2286.3,2285.6,4.35030788]
[1725737623545,1.26,2286.0,2285.9,0.43748]
[1725737623948,1.69747,2286.0,2285.8,0.43749]
[1725737626053,0.43747,2286.0,2285.8,0.43749]
[1725737626859,0.81848,2285.9,2285.8,0.43749]
[1725737627155,0.81848,2285.9,2285.7,0.43751]
[1725737627462,0.3605,2285.8,2285.7,0.43751]
[1725737628364,2.67034217,2285.9,2285.8,0.4375]
[1725737628559,2.28934217,2285.9,2285.8,0.4375]
[1725737628861,0.3605,2286.0,2285.8,0.4375]
[1725737628862,3.08730217,2286.0,2285.8,0.43749]
[1725737629564,2.28934217,2285.9,2285.8,0.43749]
[1725737636562,2.28934217,2285.9,2285.8,3.64529]
[1725737639564,2.29232432,2286.0,2285.9,0.43748]
[1725737639765,2.86411937,2286.1,2286.0,0.43746]
[1725737643276,3.61871937,2286.2,2286.1,0.43744]
[1725737643470,0.7546,2286.2,2286.1,0.43744]
[1725737643674,3.62062091,2286.2,2286.1,0.43744]
[1725737645576,3.62062091,2286.2,2286.0,0.43745]
[1725737645771,3.62062091,2286.2,2286.1,0.43744]
[1725737646477,0.7546,2286.2,2286.1,0.43744]
[1725737647576,0.7546,2286.2,2285.9,0.43747]
[1725737647577,0.43744,2286.1,2285.9,0.43747]
[1725737647778,4.93797056,2286.1,2285.9,0.43747]
[1725737649079,4.50053056,2286.1,2286.0,0.43746]
[1725737650177,2.86783056,2286.1,2286.0,0.43746]
[1725737652290,2.86783056,2286.1,2285.9,0.43747]
[1725737653281,3.30528056,2286.1,2285.9,0.43747]
[1725737654293,3.30528056,2286.1,2286.0,0.43746]
[1725737654294,2.86783056,2286.1,2286.0,0.43746]
[1725737655587,3.30527056,2286.1,2286.0,0.43746]
[1725737655790,3.3053434,2286.1,2286.0,0.43746]
[1725737658692,2.8679034,2286.1,2286.0,0.43746]
[1725737659297,2.8679034,2286.1,2286.0,1.59216]
[1725737660796,2.29418406,2286.1,2286.0,1.59216]
[1725737663790,3.6225034,2286.2,2286.1,0.43744]
[1725737665288,0.7546,2286.2,2286.1,0.43744]
[1725737666402,1.19202,2286.2,2286.1,0.43744]
[1725737667700,1.19202,2286.2,2286.0,0.43745]
[1725737667701,2.45202,2286.2,2286.0,0.43745]
[1725737668296,2.45203,2286.2,2286.0,0.43745]
[1725737668496,5.89179285,2286.2,2286.0,0.43745]
[1725737670307,5.89179285,2286.2,2285.7,2.23629788]
[1725737670308,1.09366,2286.0,2285.6,0.43753]
[1725737670598,2.86913681,2285.7,2285.6,0.43753]
[1725737671105,3.24623681,2285.7,2285.6,0.43753]
[1725737671612,0.3771,2285.7,2285.6,0.43753]
[1725737673095,0.81462,2285.7,2285.6,0.43753]
[1725737673305,0.3771,2285.7,2285.6,0.43753]
[1725737673703,0.81462,2285.7,2285.6,0.43753]
[1725737673906,0.3771,2285.7,2285.6,0.43753]
[1725737674203,0.81463,2285.7,2285.5,0.43754]
[1725737674406,2.65354989,2285.6,2285.5,0.43754]
[1725737675405,0.3596,2285.6,2285.5,0.43754]
[1725737675806,2.65354989,2285.6,2285.5,0.43754]
[1725737676199,0.3596,2285.6,2285.5,0.43754]
[1725737682511,2.65354989,2285.6,2285.5,0.43754]
[1725737683509,3.09108989,2285.6,2285.5,0.43754]
[1725737683713,0.3596,2285.6,2285.5,0.43754]
[1725737684514,2.65225662,2285.6,2285.5,0.43754]
[1725737695223,2.66975662,2285.7,2285.6,0.43754]
[1725737695619,0.3771,2285.7,2285.6,4.00614]
[1725737695819,2.66975662,2285.7,2285.6,4.00614]
[1725737701611,2.29265662,2285.7,2285.6,8.38134]
[1725737701817,2.86913681,2285.9,2285.8,0.4375]
[1725737701818,2.29265662,2285.9,2285.8,0.4375]
[1725737702025,0.7808,2286.1,2286.0,0.43746]
[1725737702026,2.68245662,2286.1,2286.0,0.43746]
[1725737702219,0.3898,2286.1,2286.0,0.43746]
[1725737702415,1.6498,2286.1,2286.0,0.43746]
[1725737702618,3.94190329,2286.1,2286.0,0.43746]
[1725737703226,9.33077681,2286.1,2285.7,0.3805]
[1725737703429,1.26,2285.9,2285.8,0.43749]
[1725737703620,0.4375,2285.8,2285.6,3.2078]
[1725737703821,1.6498,2285.7,2285.6,3.64534]
[1725737704019,2.68231213,2285.7,2285.6,3.64534]
[1725737704228,0.3898,2285.7,2285.6,3.64534]
[1725737704628,2.68231213,2285.7,2285.6,3.64534]
[1725737704814,3.93801213,2285.8,2285.7,0.43752]
[1725737705018,0.3855,2285.8,2285.7,0.43752]
[1725737708823,2.67801213,2285.8,2285.7,0.43752]
[1725737709529,3.25463681,2285.8,2285.7,0.43752]
[1725737709730,2.67888014,2285.8,2285.7,0.43752]
[1725737712228,2.67949085,2285.8,2285.7,0.43752]
[1725737712424,0.3855,2285.8,2285.7,0.43752]
[1725737713431,2.86913681,2285.9,2285.8,0.4375]
[1725737713634,4.12781394,2286.0,2285.9,0.43748]
[1725737714031,4.12781394,2286.0,2285.9,0.82748]
[1725737720940,4.56527394,2286.0,2285.9,0.82748]
[1725737721143,4.56527394,2286.0,2285.9,0.43748]
[1725737723344,2.86781394,2286.0,2285.9,0.43748]
[1725737723642,3.24661394,2286.1,2286.0,0.43746]
[1725737724748,0.3788,2286.1,2286.0,0.43746]
[1725737727647,3.10919226,2286.1,2286.0,0.43746]
[1725737727848,0.43747,2286.0,2285.8,3.5882]
[1725737728150,2.67202336,2285.9,2285.8,3.6453]
[1725737728349,3.03372336,2285.9,2285.8,3.6453]
[1725737728852,3.03372336,2285.9,2285.8,8.0197]
[1725737730343,3.03372336,2285.9,2285.8,3.6453]
[1725737730547,3.03372336,2285.9,2285.8,8.0197]
[1725737731248,2.65492336,2285.9,2285.8,8.0197]
[1725737734857,2.65492336,2285.9,2285.8,3.6453]
[1725737737748,0.3617,2285.9,2285.8,3.6453]
[1725737737955,2.65604363,2285.9,2285.8,3.6453]
[1725737738362,0.3617,2285.9,2285.8,3.6453]
[1725737739354,3.2282292,2285.9,2285.8,3.6453]
[1725737742257,0.3617,2285.9,2285.8,3.6453]
[1725737744153,2.65690631,2285.9,2285.8,3.6453]
[1725737745956,2.65736416,2285.9,2285.8,3.6453]
[1725737746551,0.3617,2285.9,2285.8,3.6453]
[1725737747762,3.2282292,2285.9,2285.8,3.6453]
[1725737748854,3.2282292,2285.9,2285.8,0.4375]
[1725737749054,0.3617,2285.9,2285.8,3.6453]
[1725737749262,2.65752338,2285.9,2285.8,4.78780788]
[1725737749464,2.65752338,2285.9,2285.8,1.58000788]
[1725737749764,2.65752338,2285.9,2285.8,4.78780788]
[1725737750267,2.29582338,2285.9,2285.8,4.78780788]
[1725737750566,1.40084338,2286.2,2286.0,1.09366]
[1725737750756,2.8665292,2286.4,2286.3,0.4374]
[1725737750958,3.2494292,2286.6,2286.3,2.82063617]
[1725737751159,3.2494292,2286.6,2286.5,3.64517]
[1725737751561,2.8665292,2286.8,2286.5,8.8414]
[1725737751767,2.8665292,2287.0,2286.9,0.43729]
[1725737752157,2.8665292,2287.3,2286.9,7.87280346]
[1725737752359,1.26,2287.6,2287.1,3.2078]
[1725737752561,1.26,2287.5,2287.2,0.43722]
[1725737752864,1.26,2287.5,2287.2,0.43723]
[1725737753165,1.26,2287.5,2287.3,0.43721]
[1725737756365,0.3931,2287.4,2287.3,0.43721]
[1725737759667,5.2023,2287.4,2287.1,0.43724]
[1725737759862,1.6274,2287.3,2287.1,0.43724]
[1725737760063,0.3938,2287.2,2287.1,0.43724]
[1725737761870,4.7658,2287.2,2286.8,3.2078]
[1725737762075,1.69726,2287.1,2286.8,3.6451]
[1725737762280,0.3825,2287.0,2286.9,0.43729]
[1725737762776,0.81977,2287.0,2286.8,0.4373]
[1725737763079,0.3957,2286.9,2286.8,0.4373]
[1725737764376,0.3957,2286.9,2286.6,6.4532217]
[1725737764567,0.3957,2286.9,2286.8,0.43731]
[1725737765167,0.3957,2286.9,2286.7,0.43731]
[1725737765775,0.3957,2286.9,2286.8,0.43731]
[1725737766073,2.093,2286.9,2286.6,6.8905517]
[1725737766270,1.26,2286.7,2286.5,0.43735]
[1725737766587,2.08165,2286.6,2286.1,1.1175]
[1725737766772,1.26,2286.4,2286.2,0.43741]
[1725737767172,1.26,2286.4,2286.3,0.4374]
[1725737767682,1.26,2286.4,2286.2,0.43741]
[1725737767886,1.26,2286.4,2286.3,0.4374]
[1725737768074,1.26,2286.4,2286.2,0.43741]
[1725737770379,1.26,2286.4,2286.3,0.4374]
[1725737770788,5.6336,2286.4,2286.3,0.4374]
[1725737771484,5.6336,2286.4,2286.2,0.43741]
[1725737771685,1.26,2286.4,2286.2,0.43741]
[1725737773184,1.26,2286.4,2286.3,0.4374]
[1725737773685,6.071,2286.4,2286.1,0.43743]
[1725737773985,1.26,2286.4,2286.2,0.43742]
[1725737775780,1.26,2286.4,2286.3,0.4374]
[1725737775982,0.3736,2286.5,2286.2,3.2078]
[1725737776185,0.3736,2286.5,2286.3,0.43739]
[1725737776888,0.3736,2286.5,2286.4,0.43739]
[1725737777888,0.3736,2286.5,2286.3,0.43739]
[1725737778986,0.81097,2286.5,2286.3,0.43739]
[1725737780689,0.3736,2286.5,2286.4,0.43739]
[1725737781185,0.3736,2286.5,2286.3,0.43739]
[1725737781399,1.6336,2286.5,2285.9,0.3609]
[1725737781680,1.69741,2286.3,2285.9,0.3609]
[1725737781885,0.7281,2286.2,2285.9,0.3609]
[1725737782673,0.7281,2286.2,2286.1,0.43744]
[1725737784088,0.3634,2286.2,2286.1,3.64524]
[1725737784388,0.43739,2286.4,2286.3,0.4374]
[1725737784582,0.3868,2286.4,2286.3,0.4374]